Cogmind - Beta 16.1 @@@ ROGUE MODE // 2026.03.12 @ 05:23:07 Player: OniAn Result: Destroyed by G-47 Trooper with Particle Gun Performance ------------- Evolutions (3) 1500 Regions Visited (13) 2600 Robots Destroyed (66) 330 Value Destroyed (5160) 5160 Prototype IDs (26) 520 Alien Tech Used (0) 0 Bonus (4725) 4725 TOTAL SCORE: 14835 Bonus ------- High Alert Combat Kills 358 Follower Combat Kills 1592 Entered Garrisons 600 Used RIF Installer 2000 Aligned with FarCom 300 Friendly Fire -125 Cogmind --------- Core Integrity 0/700 Matter 297/300 Energy 100/100 System Corruption 8% Temperature Cool (9) Movement Core (50) Location -7/Garrison Parts ------- > --- POWER (2) -------- (None) > --- PROPULSION (3) --- Carbon-fiber Leg > --- UTILITY (6) ------ Relay Coupler [Grunt] (4) Relay Coupler [Hunter] (17) > --- WEAPON (2) ------- (None) > --- INVENTORY (5) ---- Relay Coupler [NC] (31) Relay Coupler [Swarmer] (34) Relay Coupler [Demolisher] (26) Relay Coupler [Hunter] (17) Skeleton Box Peak State ------------ > --- POWER ------------ Micro Nuclear Core Light Angular Momentum Engine > --- PROPULSION ------- Gravmag System Gravmag System Backup Propulsion VII > --- UTILITY ---------- Hardened Light Armor Plating Layered Light Armor Plating System Shield Relay Coupler [Sentry] Relay Coupler [Sentry] Relay Coupler [Hunter] > --- WEAPON ----------- Remote Datajack Axe > --- INVENTORY -------- Relay Coupler [Brawler] Relay Coupler [Sentry] Relay Coupler [Hunter] Skeleton Box Beam Rifle [Rating: 55] Favorites ----------- Power Light Nuclear Core Engine Light Deuterium Engine Power Core Light Nuclear Core Reactor Particle Reactor Propulsion Light Treads Treads Light Treads Leg Carbon-fiber Leg Hover Unit Gravmag System Utility Small Storage Unit Device Trap Scanner Storage Small Storage Unit Processor Improved Targeting Computer Hackware Relay Coupler [Sentry] Protection Hardened Light Armor Plating Weapon Shotgun Energy Gun Beam Rifle Energy Cannon Ion Cannon Ballistic Gun Shotgun Ballistic Cannon Improved Light Cannon Launcher Missile Launcher Special Weapon Remote Datajack Slashing Weapon Axe Special Melee Weapon Datajack Build | -11 -10 -10 -9 -9 -9 -8 -8 -8 -8 -7 -7 -7 -7 ------- Run | Yrd Mat Min Mat Min Exi Min Mat Gar Mat Fac Gar Sto Gar Slots Evolved 6 | . . . 2 . . . 2 . . 2 . . . Power 1 | . . . . . . . 1 . . . . . . Propulsion 1 | . . . . . . . 1 . . . . . . Utility 4 | . . . 2 . . . . . . 2 . . . Weapon . | . . . . . . . . . . . . . . Parts Attached 114 | 6 7 2 3 3 . . 3 38 11 17 18 . 6 Power 23 | 1 1 2 . . . . 2 5 4 3 4 . 1 Engine 13 | 1 1 1 . . . . 2 1 4 . 3 . . Core 9 | . . 1 . . . . . 4 . 3 . . 1 Reactor 1 | . . . . . . . . . . . 1 . . Propulsion 33 | 2 . . 1 2 . . 1 15 1 6 3 . 2 Treads 14 | 2 . . 1 2 . . 1 3 1 1 3 . . Leg 12 | . . . . . . . . 10 . . . . 2 Wheel . | . . . . . . . . . . . . . . Hover 7 | . . . . . . . . 2 . 5 . . . Flight . | . . . . . . . . . . . . . . Utility 37 | 1 2 . 2 1 . . . 11 2 5 10 . 3 Device 3 | . 1 . 1 . . . . . . . 1 . . Storage 2 | 1 . . 1 . . . . . . . . . . Processor 2 | . 1 . . . . . . . . 1 . . . Hackware 17 | . . . . . . . . 6 . 1 7 . 3 Protection 13 | . . . . 1 . . . 5 2 3 2 . . Artifact . | . . . . . . . . . . . . . . Weapon 21 | 2 4 . . . . . . 7 4 3 1 . . Energy Gun 8 | 2 1 . . . . . . 3 2 . . . . Energy Cannon 2 | . . . . . . . . . 1 1 . . . Ballistic Gun 3 | . 2 . . . . . . 1 . . . . . Ballistic Cannon 1 | . . . . . . . . . 1 . . . . Launcher 2 | . 1 . . . . . . 1 . . . . . Special Weapon 1 | . . . . . . . . . . . 1 . . Impact Weapon . | . . . . . . . . . . . . . . Slashing Weapon 3 | . . . . . . . . 1 . 2 . . . Piercing Weapon . | . . . . . . . . . . . . . . Special Melee Weapon 1 | . . . . . . . . 1 . . . . . Unidentified Prototypes 1 | . . . . . . . 1 . . . . . . Parts Lost 45 | . 2 . . 1 . . 1 10 9 4 5 . 13 Power 11 | . 1 . . . . . . 3 2 1 1 . 3 Propulsion 14 | . . . . 1 . . . 4 2 1 2 . 4 Utility 12 | . . . . . . . 1 1 3 1 2 . 4 Weapon 8 | . 1 . . . . . . 2 2 1 . . 2 Highest Loss Streak 11 | . 2 . . 1 . . 1 3 9 3 3 . 11 To Critical Strikes . | . . . . . . . . . . . . . . Average Backups 6 | . 3 8 7 8 8 8 8 7 5 4 4 5 5 Power . | . . . . . . . . . . . . . . Propulsion . | . . . . . . . . . . . . . . Utility 2 | . . . . . . . . 3 4 3 2 4 4 Weapon 2 | . 3 7 6 7 6 6 6 2 . . . . . Tool/Special . | . . . . . . . . . . . . . . Unused Backups 19 | . . . . . 1 . 1 8 3 . . . 6 Power . | . . . . . . . . . . . . . . Propulsion . | . . . . . . . . . . . . . . Utility 15 | . . . . . . . . 7 3 . . . 5 Weapon 3 | . . . . . 1 . 1 1 . . . . . Tool/Special 1 | . . . . . . . . . . . . . 1 Average Slot Usage (%) 83 | . 95 100 87 91 100 100 88 80 60 76 83 88 78 Engine 5 | . 12 10 . . . . 16 . 11 9 7 7 1 Core 6 | . . 3 11 11 11 11 . 10 1 4 3 . 1 Treads 12 | . 28 28 22 20 22 22 18 8 6 6 1 22 16 Leg 2 | . . . . . . . . 8 3 . . . 1 Hover 3 | . . . . . . . . 3 . 4 14 . . Device 7 | . 7 14 21 22 22 22 16 9 1 . 2 . . Storage 6 | . 14 14 11 11 11 11 9 9 1 . . . . Hackware 8 | . . . . . . . . 2 9 11 23 29 31 Protection 8 | . . . . 4 11 11 9 9 8 16 11 7 5 Energy Gun 3 | . 15 . . . . . . 4 7 7 . . . Energy Cannon 1 | . . . . . . . . . 6 6 . . . Ballistic Gun 7 | . 11 28 22 22 22 22 18 2 . . . . . Special Weapon 1 | . . . . . . . . . . . 6 7 5 Slashing Weapon 2 | . . . . . . . . 4 . . 7 7 6 Special Melee Weapon 1 | . . . . . . . . 4 . . . . . Peak Build Rating 55 | 6 12 14 18 19 19 19 22 34 33 46 55 42 49 Average Rating 25 | 4 9 12 16 17 19 19 21 21 23 31 41 39 38 On Entrance 21 | . 6 12 14 17 19 19 19 20 30 25 41 42 38 Avg Prop Armor Cover (%) 27 | . . . . . . . . . . . 4 . 29 Naked Turns . | . . . . . . . . . . . . . . Heaviest Build 38 | 14 17 17 19 24 24 24 35 34 38 36 37 37 37 Greatest Support 71 | 40 40 40 40 40 40 40 60 60 30 43 71 71 71 Greatest Overweight (x) 7 | 2 . . . . . . . 2 7 3 4 . 6 Average Overweight (x) . | . . . . . . . . . . . . . . Largest Inventory Capacity 8 | 8 8 8 8 8 8 8 8 8 8 5 5 5 5 Average Capacity 6 | 6 8 8 7 8 8 8 8 8 5 5 5 5 5 Most Carried 8 | . 8 8 8 8 8 8 8 8 8 5 5 5 5 Average Carried 6 | . 3 8 7 8 7 8 8 7 5 4 4 5 4 Final Capacity 8 | 8 8 8 8 8 8 8 8 8 5 5 5 5 5 Final Carried 8 | . 8 8 8 8 8 8 8 8 5 5 5 5 5 Class Distribution -------------------- 45% | Mutant 27% | Scavenger-Mutant 22% | Bothacker-Mutant 3% | Botlord-Mutant Dominant Class ---------------- Mutant | -10/Materials Mutant | -10/Mines Mutant | -9/Materials Mutant | -9/Mines Scavenger-Mutant | -9/Exiles Scavenger-Mutant | -8/Mines Mutant | -8/Materials Scavenger-Mutant | -8/Garrison Mutant | -8/Materials Mutant | -7/Factory Bothacker-Mutant | -7/Garrison Bothacker-Mutant | -7/Storage Botlord-Mutant | -7/Garrison Resources | -11 -10 -10 -9 -9 -9 -8 -8 -8 -8 -7 -7 -7 -7 ----------- Run | Yrd Mat Min Mat Min Exi Min Mat Gar Mat Fac Gar Sto Gar Matter Collected 2346 | . 154 401 88 47 . 10 41 735 174 146 383 36 131 Remotely . | . . . . . . . . . . . . . . Salvage Created 2128 | . 217 263 125 152 . . 41 482 373 205 144 77 49 Parts 129 | . 13 15 5 9 . . 2 39 20 14 8 2 2 Haulers Intercepted . | . . . . . . . . . . . . . . Recyclers Shooed 2 | . 1 . . . . . . . 1 . . . . Parts Field Recycled . | . . . . . . . . . . . . . . Retrieved Matter . | . . . . . . . . . . . . . . Parts Self-Destructed . | . . . . . . . . . . . . . . Prevented . | . . . . . . . . . . . . . . Parts Restored . | . . . . . . . . . . . . . . Kills | -11 -10 -10 -9 -9 -9 -8 -8 -8 -8 -7 -7 -7 -7 ------- Run | Yrd Mat Min Mat Min Exi Min Mat Gar Mat Fac Gar Sto Gar Combat Hostiles Destroyed 58 | . 5 8 3 4 . . 1 21 7 4 4 . 1 Melee 8 | . . . . . . . . 2 . 1 4 . 1 Guns 29 | . 5 8 3 4 . . 1 6 1 1 . . . Cannons 7 | . . . . . . . . . 6 1 . . . AOE 13 | . . . . . . . . 13 . . . . . Classes Destroyed 11 | . 2 3 . 1 . . . 2 1 1 . 1 . Worker 1 | . . . . . . . . . . . . 1 . Recycler 3 | . . 1 . . . . . . 1 . . 1 . Mechanic 1 | . . 1 . . . . . . . . . . . Operator 1 | . 1 . . . . . . . . . . . . Watcher 1 | . . . . . . . . . 1 . . . . Swarmer 15 | . . 6 . 3 . . . 2 2 . 2 . . Cutter 5 | . . . . . . . . 5 . . . . . Grunt 21 | . 5 2 3 . . . . 7 2 . 1 . 1 Sentry 11 | . . . . 1 . . 1 6 3 . . . . Hunter 2 | . . . . . . . . . . 2 . . . Programmer 4 | . . . . . . . . 1 . 2 1 . . Thug 1 | . . . . 1 . . . . . . . . . Best Kill Streak 6 | . 1 4 2 3 . . 1 6 3 1 2 1 1 Combat Bots Only 6 | . 1 3 2 3 . . 1 6 3 1 2 . 1 Max Kills in Single Turn 3 | . 1 2 1 2 . . 1 3 1 1 1 1 1 Gunslinging 1 | . . 1 . . . . . . . . . . . Exploded 3 | . . . . . . . . 3 . . . . . Melee 1 | . . . . . . . . 1 . 1 1 . 1 Uniques/NPCs Destroyed . | . . . . . . . . . . . . . . Combat | -11 -10 -10 -9 -9 -9 -8 -8 -8 -8 -7 -7 -7 -7 -------- Run | Yrd Mat Min Mat Min Exi Min Mat Gar Mat Fac Gar Sto Gar Hostile Shots Fired 486 | . 54 20 7 4 . . 10 92 100 48 41 2 108 Missed 112 | . 18 5 1 3 . . 4 25 10 8 9 . 29 Hits 374 | . 36 15 6 1 . . 6 67 90 40 32 2 79 Melee 1 | . . . . . . . . 1 . . . . . Projectile 373 | . 36 15 6 1 . . 6 66 90 40 32 2 79 AOE 3 | . . . . . . . . 3 . . . . . Critical Strikes 17 | . 1 . . . . . . 5 6 1 . . 4 Damage Taken 6725 | . 494 142 65 8 . . 88 1414 1432 1144 509 70 1359 Core 1403 | . 108 73 . . . . . 211 300 212 94 18 387 Absorbed by Shields 4 | . . . . . . . . . . . . . 4 Ignored by Resistances 33 | . . . . . . . . . . 33 . . . Regen/Repaired (Parts) 37 | . . . . . . . . . . . . 37 . Core Remaining (%) 58 | 100 . 27 . . . 100 . . 7 . . . . Volleys Fired 179 | . 38 13 6 4 . 1 4 44 37 13 12 2 5 Largest 2 | . 2 2 2 2 . 2 2 2 2 2 1 1 1 Hottest 125 | . 105 46 46 46 . 46 46 80 116 125 5 5 5 Shots Fired 302 | . 73 26 12 8 . 2 8 76 54 24 12 2 5 Gun 219 | . 73 26 12 8 . 2 8 58 20 12 . . . Cannon 46 | . . . . . . . . . 34 12 . . . Launcher 18 | . . . . . . . . 18 . . . . . Special 19 | . . . . . . . . . . . 12 2 5 Kinetic 116 | . 27 26 12 8 . 2 8 18 15 . . . . Thermal 65 | . 22 . . . . . . . 26 17 . . . Explosive 18 | . . . . . . . . 18 . . . . . Electromagnetic 84 | . 24 . . . . . . 40 13 7 . . . Robot Hit Streak 12 | . 7 5 6 3 . 3 4 12 10 11 5 4 5 Robot Miss Streak 8 | . 5 6 8 1 . 1 2 4 3 2 2 . 1 Penetration Max . | . . . . . . . . . . . . . . Secondary Targets 2 | . . 1 . . . . . 1 . . . . . Max Gunslinging Chain 1 | . . 1 . . . . . 1 . . . . . Shots Hit Robots 246 | . 47 19 7 6 . 2 6 61 39 21 17 5 16 Core Hits 109 | . 15 16 7 6 . . 2 38 13 6 3 1 2 Critical Kills 1 | . . 1 . . . . . . . . . . . Critical Parts Destroyed 1 | . 1 . . . . . . . . . . . . Critical Strikes 11 | . 2 1 . . . . . 3 . . 2 . 3 Burn 1 | . 1 . . . . . . . . . . . . Destroy 2 | . 1 1 . . . . . . . . . . . Sever 8 | . . . . . . . . 3 . . 2 . 3 Melee Attacks 157 | . . . . . . . . 65 . 6 53 4 29 Impact . | . . . . . . . . . . . . . . Slashing 129 | . . . . . . . . 37 . 6 53 4 29 Piercing . | . . . . . . . . . . . . . . Sneak Attacks 13 | . . . . . . . . 8 . . 2 3 . Combat Hostiles . | . . . . . . . . . . . . . . Follow-up Attacks . | . . . . . . . . . . . . . . Damage Inflicted 5289 | . 702 317 155 74 . 33 105 1649 824 426 312 229 463 Guns 2070 | . 696 310 155 74 . 33 105 334 226 137 . . . Cannons 777 | . . . . . . . . . 598 179 . . . Explosions 1232 | . . . . . . . . 1232 . . . . . Melee 1174 | . . . . . . . . 83 . 93 312 229 457 Ramming 36 | . 6 7 . . . . . . . 17 . . 6 Kinetic 1332 | . 313 310 155 74 . 33 105 107 235 . . . . Thermal 907 | . 210 . . . . . . 63 423 211 . . . Explosive 1169 | . . . . . . . . 1169 . . . . . Electromagnetic 671 | . 173 . . . . . . 227 166 105 . . . Impact . | . . . . . . . . . . . . . . Slashing 1174 | . . . . . . . . 83 . 93 312 229 457 Piercing . | . . . . . . . . . . . . . . Highest Corruption 8 | . . . . . . . . 1 1 6 6 6 8 Average Corruption 4 | . . . . . . . . 1 1 5 6 6 6 Corruption Purged . | . . . . . . . . . . . . . . Corruption Blocked . | . . . . . . . . . . . . . . Effects 84 | . . . . . . . . 3 9 2 46 7 17 Message Errors 19 | . . . . . . . . . 1 . 11 2 5 Matter Fused 26 | . . . . . . . . 1 6 1 10 3 5 Heat Flow Errors 11 | . . . . . . . . 1 1 . 7 . 2 Energy Discharges 9 | . . . . . . . . 1 . . 5 1 2 Parts Rejected 2 | . . . . . . . . . . . 2 . . Data Loss (minor) 11 | . . . . . . . . . 1 1 6 1 2 Data Loss (major) 4 | . . . . . . . . . . . 3 . 1 Alerts 2 | . . . . . . . . . . . 2 . . Overload Shots . | . . . . . . . . . . . . . . Overflow Damage 157 | . . . . . . . . 67 1 . 25 44 20 Projectiles 1 | . . . . . . . . . 1 . . . . Explosions 67 | . . . . . . . . 67 . . . . . Melee 89 | . . . . . . . . . . . 25 44 20 Knockbacks 5 | . . . . . . . . . 5 . . . . Impact . | . . . . . . . . . . . . . . Kinetic 4 | . . . . . . . . . 4 . . . . Secondary 1 | . . . . . . . . . 1 . . . . Self-Inflicted Damage 304 | . . . . . . . . 297 . 5 . . 2 Shots 7 | . . . . . . . . 7 . . . . . Rammed 5 | . 1 1 . . . . . . . 2 . . 1 Targets Rammed 6 | . 1 1 . . . . . . . 2 . . 2 Kicked 1 | . . . . . . . . . . . . . 1 Crushed . | . . . . . . . . . . . . . . Highest Temperature 582 | . 570 . . . . . 12 461 553 582 250 . 280 Average Temperature 142 | . 259 . . . . . 10 98 185 172 44 . 111 Received Heat Transfer 2319 | . 279 39 36 . . . 36 459 783 . 81 18 588 Effects 65 | . 9 . . . . . . 4 13 39 . . . Shutdowns 17 | . 3 . . . . . . 1 3 10 . . . Energy Bleed 7 | . . . . . . . . 1 2 4 . . . Interference 8 | . . . . . . . . . . 8 . . . Matter Decay 4 | . 2 . . . . . . . . 2 . . . Short Circuit 6 | . 2 . . . . . . . 3 1 . . . Damage (minor) 4 | . 1 . . . . . . . 1 2 . . . Damage (major) 16 | . . . . . . . . 2 3 11 . . . Damage (core) 3 | . 1 . . . . . . . 1 1 . . . Siege Activations . | . . . . . . . . . . . . . . Martial Activations . | . . . . . . . . . . . . . . Shielding Activations . | . . . . . . . . . . . . . . Robots Disrupted . | . . . . . . . . . . . . . . Combat Hostiles . | . . . . . . . . . . . . . . Robots Corrupted 1 | . . . . . . . . . . 1 . . . Combat Hostiles 1 | . . . . . . . . . . 1 . . . Parts Fried 2 | . . . . . . . . . . 2 . . . Impact Corruptions . | . . . . . . . . . . . . . . Robots Melted . | . . . . . . . . . . . . . . Combat Hostiles . | . . . . . . . . . . . . . . Parts Melted 3 | . 2 . . . . . . . 1 . . . . Heat Transferred 1950 | . 666 . . . . . . 100 740 444 . . . Parts Sabotaged . | . . . . . . . . . . . . . . Parts Stolen . | . . . . . . . . . . . . . . Parts Stripped . | . . . . . . . . . . . . . . Power Chain Reactions 1 | . . . . . . . . 1 . . . . . Alert | -11 -10 -10 -9 -9 -9 -8 -8 -8 -8 -7 -7 -7 -7 ------- Run | Yrd Mat Min Mat Min Exi Min Mat Gar Mat Fac Gar Sto Gar Maximum Alert Level 5 | . . . . . . . . 5 3 1 2 2 2 Low Security (%) 43 | 100 100 100 100 100 . 100 100 10 . 89 19 . . Level 1 19 | . . . . . . . . 25 . 10 52 97 10 Level 2 17 | . . . . . . . . 18 39 . 27 2 89 Level 3 12 | . . . . . . . . 24 60 . . . . Level 4 4 | . . . . . . . . 15 . . . . . Level 5 1 | . . . . . . . . 5 . . . . . High Security . | . . . . . . . . . . . . . . Max Security . | . . . . . . . . . . . . . . Peak Influence 1739 | . 50 104 121 61 . . 30 1739 847 259 497 404 533 Initial 847 | . . 1 . 39 . . . 9 847 259 2 241 256 Average 353 | . 22 20 42 18 . . 3 701 717 52 282 309 457 Influence Increases 4623 | . 155 256 283 91 . . 34 2050 243 115 705 283 408 Destroy 0b10 Robot/C 1835 | . 100 200 160 80 . . 20 630 105 60 240 90 150 Destroy 0b10 Robot/NC 52 | . 5 10 5 . . . . . 8 . . 24 . Destroy Leader 250 | . 20 40 20 10 . . 10 18 42 32 16 26 16 Allied During Kill 209 | . . 6 10 1 . . . 58 . . 65 43 26 Successful Hack 80 | . . . 28 . . . 4 17 3 11 17 . . Disable Machine 99 | . . . 15 . . . . . 12 12 12 48 . Anti-Garrison Action 1557 | . . . . . . . . 1179 . . 264 . 114 Destroy Structure 298 | . . . . . . . . 136 1 . 55 52 54 Partial Spotted 12 | . . . . . . . . . 12 . . . . Lose Combat Pursuer 231 | . 30 . 45 . . . . 12 60 . 36 . 48 Influence Decreases 4169 | . 150 261 183 191 . . 20 325 1410 684 211 386 348 Entered New Map 1670 | . . 4 . 61 . . . 5 892 313 1 256 138 Time Decay 1610 | . 130 257 183 120 . . 20 . 428 342 . 130 . Lost Part 429 | . 20 . . 10 . . . 100 90 29 50 . 130 Lost Ally 460 | . . . . . . . . 220 . . 160 . 80 Squads Dispatched 8 | . 1 1 . . . . . . 1 3 . 2 . Investigation 2 | . . . . . . . . . 1 1 . . . Extermination 2 | . . . . . . . . . . 2 . . . Reinforcement 3 | . 1 . . . . . . . . . . 2 . Assault 1 | . . 1 . . . . . . . . . . . Garrison . | . . . . . . . . . . . . . . Intercept . | . . . . . . . . . . . . . . Searches Triggered . | . . . . . . . . . . . . . . Construction Impeded . | . . . . . . . . . . . . . . Haulers Reinforced 1 | . . . . . . . . . . . . 1 . Active Scanning Responses . | . . . . . . . . . . . . . . Cargo Convoy Interrupts . | . . . . . . . . . . . . . . Stealth | -11 -10 -10 -9 -9 -9 -8 -8 -8 -8 -7 -7 -7 -7 --------- Run | Yrd Mat Min Mat Min Exi Min Mat Gar Mat Fac Gar Sto Gar Distress Signals 6 | . 1 . 2 . . . 1 . . . . 1 1 Communications Jammed 6 | . . . . . . . . . . . . 6 . Distress Signals 5 | . . . . . . . . . . . . 5 . Times Spotted 151 | . 13 10 6 4 . . 3 40 17 6 21 8 23 Peak Tracking Total 6 | . 3 2 3 2 . . 3 6 3 2 4 4 6 Tactical Retreats 13 | . 2 . 3 . . . . 1 3 . 2 . 2 Traps | -11 -10 -10 -9 -9 -9 -8 -8 -8 -8 -7 -7 -7 -7 ------- Run | Yrd Mat Min Mat Min Exi Min Mat Gar Mat Fac Gar Sto Gar Traps Triggered 16 | . . . . . . . . 1 1 2 9 2 1 Indirectly . | . . . . . . . . . . . . . . Trap Hack Attempts 88 | . . . . . . . . 88 . . . . . Triggered . | . . . . . . . . . . . . . . Disarmed 3 | . . . . . . . . 3 . . . . . Reprogrammed 4 | . . . . . . . . 4 . . . . . Reused . | . . . . . . . . . . . . . . Traps Extracted . | . . . . . . . . . . . . . . Installed . | . . . . . . . . . . . . . . Triggered . | . . . . . . . . . . . . . . Machines | -11 -10 -10 -9 -9 -9 -8 -8 -8 -8 -7 -7 -7 -7 ---------- Run | Yrd Mat Min Mat Min Exi Min Mat Gar Mat Fac Gar Sto Gar Machines Disabled 27 | . . . 1 . . . . 12 1 1 4 4 4 Max in Single Turn 1 | . . . . . . . . 1 1 1 1 . 1 Garrison Relay 13 | . . . . . . . . 8 . . 3 . 2 Phase Generator 2 | . . . . . . . . 1 . . . . 1 Machines Repaired . | . . . . . . . . . . . . . . Machines Dismantled . | . . . . . . . . . . . . . . Machines Sabotaged . | . . . . . . . . . . . . . . Overloaded Fab Kills . | . . . . . . . . . . . . . . Hacking | -11 -10 -10 -9 -9 -9 -8 -8 -8 -8 -7 -7 -7 -7 --------- Run | Yrd Mat Min Mat Min Exi Min Mat Gar Mat Fac Gar Sto Gar Machines Accessed 22 | . . . 3 . 1 . 1 4 4 4 2 3 . Terminals 16 | . . . 3 . . . . 4 4 2 2 1 . Fabricators 1 | . . . . . . . . . . 1 . . . Repair Stations 1 | . . . . . . . . . . . . 1 . Recycling Units . | . . . . . . . . . . . . . . Scanalyzers . | . . . . . . . . . . . . . . Garrison Access 3 | . . . . . . . 1 . . 1 . 1 . Total Hacks 45 | . . . 10 . 1 . 1 9 10 7 2 5 . Successful 24 | . . . 5 . 1 . 1 4 4 4 2 3 . Failed 21 | . . . 5 . . . . 5 6 3 . 2 . Catastrophic 1 | . . . . . . . . 1 . . . . . Database Lockouts . | . . . . . . . . . . . . . . Manual 14 | . . . 3 . 1 . . . 5 3 . 2 . Terminals 38 | . . . 10 . . . . 9 10 5 2 2 . Fabricators 1 | . . . . . . . . . . 1 . . . Repair Stations 2 | . . . . . . . . . . . . 2 . Recycling Units . | . . . . . . . . . . . . . . Scanalyzers . | . . . . . . . . . . . . . . Garrison Access 3 | . . . . . . . 1 . . 1 . 1 . Terminal Hacks 10 | . . . 3 . 1 . . 4 . . 2 . . Robot Analysis 2 | . . . 2 . . . . . . . . . . Prototype ID Bank 1 | . . . 1 . . . . . . . . . . Open Door 3 | . . . . . . . . 2 . . 1 . . Emergency Access Points 2 | . . . . . . . . 1 . . 1 . . Garrison Registry 1 | . . . . . . . . 1 . . . . . Proto ID Catalog 1 | . . . . . 1 . . . . . . . . Fabricator Hacks 1 | . . . . . . . . . . 1 . . . Network Status 1 | . . . . . . . . . . 1 . . . Repair Station Hacks 2 | . . . . . . . . . . . . 2 . Scan Component 1 | . . . . . . . . . . . . 1 . Repair 1 | . . . . . . . . . . . . 1 . Recycling Unit Hacks . | . . . . . . . . . . . . . . Scanalyzer . | . . . . . . . . . . . . . . Garrison Access Hacks 3 | . . . . . . . 1 . . 1 . 1 . Unlock Access 3 | . . . . . . . 1 . . 1 . 1 . Unauthorized Hacks 8 | . . . 2 . . . . . 4 2 . . . Terminals 8 | . . . 2 . . . . . 4 2 . . . Botnet 8 | . . . 2 . . . . . 4 2 . . . Fabricators . | . . . . . . . . . . . . . . Repair Stations . | . . . . . . . . . . . . . . Recycling Units . | . . . . . . . . . . . . . . Scanalyzers . | . . . . . . . . . . . . . . Garrison Access . | . . . . . . . . . . . . . . Data Cores Recovered . | . . . . . . . . . . . . . . Used . | . . . . . . . . . . . . . . Hacking Detections 12 | . . . 3 . . . . 2 4 2 . 1 . Full Trace Events . | . . . . . . . . . . . . . . Feedback Events . | . . . . . . . . . . . . . . Feedback Blocked . | . . . . . . . . . . . . . . Robot Schematics Acquired . | . . . . . . . . . . . . . . Robots Built . | . . . . . . . . . . . . . . Authchips . | . . . . . . . . . . . . . . Time . | . . . . . . . . . . . . . . Total Robot Build Rating . | . . . . . . . . . . . . . . Part Schematics Acquired . | . . . . . . . . . . . . . . Parts Built . | . . . . . . . . . . . . . . Authchips . | . . . . . . . . . . . . . . Time . | . . . . . . . . . . . . . . Total Part Build Rating . | . . . . . . . . . . . . . . Part Studies Acquired . | . . . . . . . . . . . . . . Parts Repaired 1 | . . . . . . . . . . . . 1 . Time 68 | . . . . . . . . . . . . 68 . Parts Recycled . | . . . . . . . . . . . . . . Recycled Matter . | . . . . . . . . . . . . . . Retrieved Matter . | . . . . . . . . . . . . . . Retrieved Components . | . . . . . . . . . . . . . . Parts Scanalyzed . | . . . . . . . . . . . . . . Part Schematics Acquired . | . . . . . . . . . . . . . . Parts Damaged . | . . . . . . . . . . . . . . Bothacking | -11 -10 -10 -9 -9 -9 -8 -8 -8 -8 -7 -7 -7 -7 ------------ Run | Yrd Mat Min Mat Min Exi Min Mat Gar Mat Fac Gar Sto Gar Used RIF Installer 4 | . . . . . . . . 2 . . 1 . 1 Threat Obfuscator 1 | . . . . . . . . 1 . . . . . Signal Jammer 1 | . . . . . . . . . . . 1 . . Structural Interface 1 | . . . . . . . . . . . . . 1 Robots Hacked 23 | . . . . . . . . 9 . . 9 2 3 Non-combat 1 | . . . . . . . . . . . . 1 . Combat 22 | . . . . . . . . 9 . . 9 1 3 Robot Hacks Applied 23 | . . . . . . . . 9 . . 9 2 3 parse_system 1 | . . . . . . . . . . . 1 . . disable_weapons 1 | . . . . . . . . 1 . . . . . reboot_system 1 | . . . . . . . . 1 . . . . . go_dormant 2 | . . . . . . . . 2 . . . . . overwrite_iff 1 | . . . . . . . . . . . 1 . . formatsys_high 17 | . . . . . . . . 5 . . 7 2 3 Relay Couplers Released 57 | . . . . . . . . 33 . . 15 . 9 Machine Destruction 54 | . . . . . . . . 33 . . 12 . 9 Programmers 3 | . . . . . . . . . . . 3 . . Attached 16 | . . . . . . . . 6 . . 7 . 3 Fabnet Peak Effective % . | . . . . . . . . . . . . . . Robots Rewired 4 | . . . . . . . . 4 . . . . . Allies Hacked . | . . . . . . . . . . . . . . Hacks Repelled . | . . . . . . . . . . . . . . Allies | -11 -10 -10 -9 -9 -9 -8 -8 -8 -8 -7 -7 -7 -7 -------- Run | Yrd Mat Min Mat Min Exi Min Mat Gar Mat Fac Gar Sto Gar Total Allies 30 | . . 1 . . . . . 12 . . 12 2 3 Largest Group 6 | . . 1 1 1 . . . 6 . . 6 4 4 Highest-Rated Group 244 | . . 31 31 31 . . . 244 . . 190 235 235 Highest-Rated Ally 178 | . . 31 31 31 . . . 178 . . 95 95 95 Total Orders . | . . . . . . . . . . . . . . Ally Attacks 195 | . . 8 19 1 . . . 91 . . 46 15 15 Total Damage 5661 | . . 105 236 . . . . 1533 . . 1251 1016 1520 Kills 59 | . . 2 6 . . . . 16 . . 13 10 12 Allies Corrupted . | . . . . . . . . . . . . . . Allies Melted . | . . . . . . . . . . . . . . Intel | -11 -10 -10 -9 -9 -9 -8 -8 -8 -8 -7 -7 -7 -7 ------- Run | Yrd Mat Min Mat Min Exi Min Mat Gar Mat Fac Gar Sto Gar Active Infowar (turns) 5342 | . . . 582 403 428 218 188 3339 184 . . . . Traps 5342 | . . . 582 403 428 218 188 3339 184 . . . . Robot Analysis Total 2 | . . . 2 . . . . . . . . . . Derelict Logs Recovered 1 | . . 1 . . . . . . . . . . . Drone Launches . | . . . . . . . . . . . . . . Drone Recoveries . | . . . . . . . . . . . . . . Exploration | -11 -10 -10 -9 -9 -9 -8 -8 -8 -8 -7 -7 -7 -7 ------------- Run | Yrd Mat Min Mat Min Exi Min Mat Gar Mat Fac Gar Sto Gar Turns Passed 12101 | 68 363 1225 595 403 428 218 188 3339 1051 1487 1832 276 628 Spaces Moved 6656 | 44 145 672 215 242 267 135 108 2015 450 741 1124 111 387 Core 171 | 13 . . . . . . . . 50 . . . 108 Treads 3665 | 31 145 672 215 242 267 135 108 644 278 448 102 111 267 Legs 1017 | . . . . . . . . 883 122 . . . 12 Wheels . | . . . . . . . . . . . . . . Hover 1803 | . . . . . . . . 488 . 293 1022 . . Flight . | . . . . . . . . . . . . . . Fastest Speed 50 | 50 160 160 160 160 160 160 160 116 50 52 58 160 50 Average Speed 151 | 136 160 160 160 160 160 160 160 139 204 175 127 160 128 Slowest Speed 400 | 160 160 160 160 160 160 160 160 240 400 280 300 160 350 Overloaded Moves . | . . . . . . . . . . . . . . Propulsion Burnouts . | . . . . . . . . . . . . . . Robots Hopped . | . . . . . . . . . . . . . . Potential Cave-ins 7 | . . . . . . . . 4 . 3 . . . Cave-ins Triggered . | . . . . . . . . . . . . . . Exploration Rate (%) 37 | 4 18 95 17 29 61 28 13 81 21 12 85 26 39 Regions Visited 13 Branch Regions 5 Pre-discovered Areas . | . . . . . . . . . . . . . . Known Exits Taken 3 | . . . . . . . 1 . . 1 . 1 . Unknown Exits Taken 8 | 1 1 1 1 1 1 1 . . 1 . . . . Scrap Searched 4 | . . 2 . 1 . 1 . . . . . . . Spaces Dug 18 | . . . . . . . . . . . 15 . 3 Terrain Destroyed 129 | . . . . . . . . 110 1 . 15 . 3 Melee 18 | . . . . . . . . . . . 15 . 3 Projectile 1 | . . . . . . . . . 1 . . . . AOE 110 | . . . . . . . . 110 . . . . . Terrain Rammed . | . . . . . . . . . . . . . . Walls Destroyed . | . . . . . . . . . . . . . . Machines Disabled . | . . . . . . . . . . . . . . Actions | -11 -10 -10 -9 -9 -9 -8 -8 -8 -8 -7 -7 -7 -7 --------- Run | Yrd Mat Min Mat Min Exi Min Mat Gar Mat Fac Gar Sto Gar Total 8130 | 49 200 795 454 249 268 135 117 2369 525 885 1425 199 460 Wait 695 | . . 107 224 . . . . 45 26 99 104 78 12 Move 6641 | 43 144 671 214 241 266 134 107 2013 449 740 1122 110 387 Hop . | . . . . . . . . . . . . . . Pick Up 43 | . 8 . 3 . 1 . 1 22 . 2 5 . 1 Fast Attach 72 | 6 4 . 3 2 . . 2 15 9 10 10 5 6 Attach 11 | . . . . . . . . 6 . 1 4 . . Detach 10 | . 1 . . . . . . 4 . . 4 . 1 Swap 48 | . 3 2 1 1 . . 1 25 2 6 7 . . Drop 58 | . 1 1 3 1 1 . 2 35 2 6 5 . 1 Fire 179 | . 38 13 6 4 . 1 4 44 37 13 12 2 5 Melee 157 | . . . . . . . . 65 . 6 53 4 29 Ram 2 | . . . . . . . . . . 1 . . 1 Kick 1 | . . . . . . . . . . . . . 1 Crush 3 | . 1 1 . . . . . . . 1 . . . Escape Stasis 118 | . . . . . . . . 5 . . 98 . 15 Rewire 4 | . . . . . . . . 2 . . 1 . 1 Trap 88 | . . . . . . . . 88 . . . . . Miscellaneous . | . . . . . . . . . . . . . . Route ------- -11/Scrapyard -10/Materials -10/Mines (discovered 3 exits: *Mat x2 / [*Sub]) -9/Materials -9/Mines (discovered 2 exits: *Mat / *Exi) -9/Exiles -8/Mines -8/Materials -8/Garrison (discovered 4 exits: *Mat x4) -8/Materials -7/Factory (discovered 2 exits: [*Fac] / Gar) -7/Garrison (discovered 3 exits: *Sto x3) -7/Storage -7/Garrison History --------- Turn | Location | Event 6 | -11/Scrapyard | Discovered new exit (range 15) 69 | -11/Scrapyard | Entered Materials 312 | -10/Materials | Build established: Mutant 345 | -10/Materials | Discovered new exit (range 16) 432 | -10/Materials | Entered Mines 461 | -10/Mines | Met a Derelict bent on vengeance 467 | -10/Mines | Core integrity fell below 50% 469 | -10/Mines | Discovered new exit (range 5) 488 | -10/Mines | Learned Materials garrison access intel 781 | -10/Mines | Met a Derelict testing a Signal Generator 882 | -10/Mines | Discovered new exit (range 13) 1045 | -10/Mines | Discovered new exit (range 6) 1469 | -10/Mines | Found a damaged Exp. Sensor Array with a note attached 1657 | -10/Mines | Entered Materials 1657 | -9/Materials | Accompanied by 1 ally 1657 | -9/Materials | Evolved 2 slots: Utility x2 2161 | -9/Materials | Discovered new exit (range 16) 2252 | -9/Materials | Entered Mines 2252 | -9/Mines | Accompanied by 1 ally 2481 | -9/Mines | Joined a pair of Derelicts in attacking an 0b10 outpost 2613 | -9/Mines | Discovered new exit (range 6) 2643 | -9/Mines | Deemed a non-threat by the Exiles lab entrance 2645 | -9/Mines | Discovered new exit (range 5) 2655 | -9/Mines | Entered Exiles 2694 | -9/Exiles | Met 8R-AWN 2724 | -9/Exiles | Met EX-HEX 2782 | -9/Exiles | Met EX-BIN 2794 | -9/Exiles | Build established: Scavenger-Mutant 2806 | -9/Exiles | Aligned with FarCom system 2807 | -9/Exiles | Given EX-Vault access code 2855 | -9/Exiles | Opened EX-Vault 2890 | -9/Exiles | Found Skeleton Box 2935 | -9/Exiles | Warned to stay clear of 0b10 Research branches 2991 | -9/Exiles | Met EX-DEC 3062 | -9/Exiles | Discovered new exit (range 12) 3083 | -9/Exiles | Left Exiles lab with Skeleton Box 3083 | -9/Exiles | Entered Mines 3283 | -8/Mines | Discovered new exit (range 5) 3301 | -8/Mines | Entered Materials 3301 | -8/Materials | Evolved 2 slots: Power x1, Propulsion x1 3302 | -8/Materials | Loaded intel: 1 garrison access location 3487 | -8/Materials | Identified exit to Garrison 3489 | -8/Materials | Entered Garrison 3525 | -8/Garrison | Triggered checkpoint 3683 | -8/Garrison | Installed Relay Interface Framework 3835 | -8/Garrison | Garrison Relay disabled 3999 | -8/Garrison | Triggered checkpoint 4046 | -8/Garrison | Discovered new exit (range 19) 4046 | -8/Garrison | Discovered new exit (range 51) 4046 | -8/Garrison | Discovered new exit (range 56) 4046 | -8/Garrison | Discovered new exit (range 30) 4161 | -8/Garrison | Triggered checkpoint 4221 | -8/Garrison | Triggered checkpoint 4391 | -8/Garrison | Triggered checkpoint 4426 | -8/Garrison | Lost 3 parts (1p1n1w) 4472 | -8/Garrison | Rescued AZ-K3N 4621 | -8/Garrison | Expanded RIF knowledge: Threat Obfuscation 4679 | -8/Garrison | Garrison Relay disabled 4801 | -8/Garrison | Triggered checkpoint 4812 | -8/Garrison | Garrison Relay disabled 4999 | -8/Garrison | Triggered checkpoint 5196 | -8/Garrison | Build established: Bothacker-Mutant 5661 | -8/Garrison | Lost 4 allies 5685 | -8/Garrison | Triggered checkpoint 5917 | -8/Garrison | Build established: Scavenger-Mutant 5983 | -8/Garrison | Rescued a captive Derelict 5993 | -8/Garrison | Rescued a captive Derelict 6061 | -8/Garrison | Triggered checkpoint 6090 | -8/Garrison | Garrison Relay disabled 6290 | -8/Garrison | Phase Generator disabled 6321 | -8/Garrison | Lost 3 parts (1p1n1w) 6414 | -8/Garrison | Garrison Relay disabled 6428 | -8/Garrison | Garrison Relay disabled 6459 | -8/Garrison | Garrison Relay disabled 6828 | -8/Garrison | Entered Materials 7023 | -8/Materials | Core integrity fell below 50% 7046 | -8/Materials | Core integrity fell below 20% 7078 | -8/Materials | Lost 9 parts (2p2n3u2w) 7315 | -8/Materials | Build established: Mutant 7851 | -8/Materials | Discovered new exit (range 12) 7879 | -8/Materials | Entered Factory 7879 | -7/Factory | Evolved 2 slots: Utility x2 9022 | -7/Factory | Discovered new exit (range 5) 9290 | -7/Factory | Lost 3 parts (1p1n1w) 9365 | -7/Factory | Identified exit to Garrison 9366 | -7/Factory | Entered Garrison 9424 | -7/Garrison | Rescued a captive Derelict 9426 | -7/Garrison | Rescued a captive Derelict 9440 | -7/Garrison | Triggered checkpoint 9490 | -7/Garrison | Garrison Relay disabled 9600 | -7/Garrison | Triggered checkpoint 9651 | -7/Garrison | Discovered new exit (range 10) 9732 | -7/Garrison | Triggered checkpoint 9765 | -7/Garrison | Garrison Relay disabled 9856 | -7/Garrison | Triggered checkpoint 10004 | -7/Garrison | Triggered checkpoint 10015 | -7/Garrison | Expanded RIF knowledge: Signal Jamming 10031 | -7/Garrison | Garrison Relay disabled 10110 | -7/Garrison | Discovered new exit (range 10) 10289 | -7/Garrison | Triggered checkpoint 10333 | -7/Garrison | Build established: Bothacker-Mutant 10370 | -7/Garrison | Triggered checkpoint 10427 | -7/Garrison | Lost 3 parts (1n2u) 10551 | -7/Garrison | Discovered new exit (range 14) 10666 | -7/Garrison | Found embedded Infiltrators 11198 | -7/Garrison | Entered Storage 11198 | -7/Storage | Accompanied by 2 allies 11409 | -7/Storage | Repaired Particle Reactor 11469 | -7/Storage | Identified exit to Garrison 11474 | -7/Storage | Entered Garrison 11474 | -7/Garrison | Accompanied by 4 allies 11519 | -7/Garrison | Expanded RIF knowledge: Structural Interface 11541 | -7/Garrison | Phase Generator disabled 11572 | -7/Garrison | Lost 3 allies 11572 | -7/Garrison | Garrison Relay disabled 11628 | -7/Garrison | Triggered checkpoint 11708 | -7/Garrison | Triggered checkpoint 11729 | -7/Garrison | Garrison Relay disabled 11778 | -7/Garrison | Core integrity fell below 50% 11793 | -7/Garrison | Lost 3 allies 11878 | -7/Garrison | Build established: Botlord-Mutant 11999 | -7/Garrison | Core integrity fell below 20% 12048 | -7/Garrison | Lost 11 parts (2p3n4u2w) 12062 | -7/Garrison | Triggered checkpoint 12102 | -7/Garrison | Destroyed by G-47 Trooper with Particle Gun Last Messages --------------- 12075_ Field strength at 88. 12076_ Field strength at 82. 12077_ Field strength at 76. 12078_ Field strength at 70. 12079_ Field strength at 64. 12080_ Field strength at 58. 12081_ Field strength at 52. 12082_ Field strength at 46. 12083_ Field strength at 40. 12084_ Field strength at 34. 12085_ Field strength at 28. 12086_ Field strength at 22. 12087_ Field strength at 16. 12088_ Field strength at 10. 12089_ Field strength at 4. 12089_ Stasis field depleted. 12091_ System corrupted: Matter fused (-6). 12093_ Slammed into W-25 Informer. 12093_ Destabilizing: System corrupted (+2). 12093_ W-25 Informer sends out distress signal. Map ----- +----------------------------------------------------+ | | | ?????????????????????????????????????????????????? | | ?????????????????????????????????????????????????? | | ?????????????????????????????????????????????????? | | ?????????????????????????????????????????????????? | | ?????????????????????????????????????????????????? | | ?????????????????????????????????????????????????? | | ?????????????????????????????????????????????????? | | ?????????????????????????????????????????????????? | | ?????????????????????????????????????????????????? | | ?????????????????????????????????????????????????? | | ?????????????????????????????????????????????????? | | ?????????????????????????????????????????????????? | | ?????????????????????????????????????????????????? | | ?????????????????###?????????????????????????????? | | ######?????????## ?????????????????????????????? | | "" ""#?????????? ?????????????????????????????? | | #!!!######?????? ?????????????????????????????? | | ! ! #?????? ?????????????????????????????? | | ! ! #??????? ?????????????????????????????? | | #== ######??????? ?????????????????????????????? | | #!*=#????????????# #?????????????????????????????? | | ## ##????????????# #######???????????????????????? | | ##[#?????????????# #!! !!###?????????????????????? | | #?????????????# #?????????????????????? | | ####?????????????# g g @g#?????????????????????? | | ?????????????????# #!! !!# #?????????????????????? | | ?????????????????# ####### #?????????????????????? | | ?????????????????# #?????# #?????????????????????? | | ?????????????????# #?????# #?????????????????????? | | ?????????????????# #?????# #?????????????????????? | | ????????????????## #######Y## #????????????????? | | ????????????????# w ???????????????? | | ????????????????# Y #????????????????? | | ????????????????# ####### ### #????????????????? | | ????????????????# #?????# #?????????????????????? | | ????????????????# #?????# #?????????????????????? | | ?????????????#### ####### ??????????????????????? | | ?????????????# ????????????????? | | ?????????????# ## ##### ##??????????????????????? | | ?????????????# ## #?????????Y???????????????????? | | ############## ## #?????????????????????????????? | | == # ## #?????????????????????????????? | | #*## ## ### ## ##????????????????????????????? | | #### ##??????????????????????? | | ??????????????????? | | #### ####????????????????????? | | ###### ## ## #????????????????????????????? | | ?????# ## ## #????????????????????????????? | | ?????" "????????????????????????????? | +----------------------------------------------------+ Best States ------------- Heat Dissipation 48 Energy Generation 34 Energy Capacity 530 Matter Stores 300 Matter Capacity 400 Sight Range 16 Terrain Scan Density 10 Armor Coverage 600 Resistance: EM 15 Evasion (%) 55 Targeting Accuracy 6 Recoil Reduction 3 Defensive Hacking 10 Relay Coupler Types 4 Relay Coupler Value 100 Item Schematics ----------------- None Robot Schematics ------------------ None Fabricated ------------ Nothing Repaired ---------- Particle Reactor | 66% | -7/Storage Studied --------- None Alien Tech Used ----------------- None Achievements -------------- Analysis Probe Challenges ------------ None Game ------ Seed MachineSuperquantumTrident Manual? 0 Play Time 01:14:48 Cumulative 51.8 hours Start 2026.03.11 @ 06:21:26 End 2026.03.12 @ 05:23:07 Sessions 2 Manual Loads 0 Difficulty Rogue Special Mode None Game No. 73 Rogue 49 Adventurer 24 Explorer 0 Win Type - Total 0 Types 0/0/0/0/0/0/0/0/0/0 Lore% 33 Gallery% 29 Achievement% 23 Wizard Run 0 Options --------- Layout 1 ASCII 0 Keyboard 1 Movement Arrows Keybinds 0 Fullscreen 1 Font 24/Smallcaps Map View 50x35 Zoom Use 0% Tactical HUD 1 Map Filters NONE Filters NONE Steam 1 RUN: aa3ac06e-f377-4e41-8494-540e3f5c15af